{"text_format":"1","workbook":"xlsx","n_sheets":3,"sheets":["Density Worksheet","Printable Density Worksheet","Formatted for PWL"],"not_rendered":{"charts":0,"images":0,"macros":1,"external_links":0,"defined_names":2,"comments":0,"pivot_tables":0},"unopened":[],"bounds":{"document_bytes":16777216,"sheet_cells":100000,"rows_first":2000,"rows_last":500,"rows_between":2000,"halvings":0,"cell_chars":16384,"cell_head_chars":4096},"cells_cut":0,"cells_raw":0,"read":"whole","date_system":"1900"}

{"sheet":"Density Worksheet","index":0,"n_rows":35,"n_cols":38,"rows_kept":35,"cut":false,"hidden":false,"merged":[[11,34,11,36],[11,4,11,6],[11,7,11,9],[11,0,11,3],[11,37,12,37],[11,27,11,29],[11,30,11,33],[3,8,3,9],[4,8,4,9],[5,8,5,9],[6,8,6,9],[7,8,7,9],[8,8,8,9],[9,8,9,9],[10,8,10,9],[6,12,6,13],[11,26,12,26],[11,16,11,17],[12,16,12,17],[3,5,3,7],[1,0,1,4],[0,0,0,4],[34,0,34,15],[35,0,42,15],[2,0,2,13],[3,10,3,13],[4,10,4,13],[5,10,5,13],[7,10,7,13],[8,10,8,13],[9,10,9,13],[10,10,10,13],[3,1,3,3],[11,10,11,12],[11,13,11,15],[5,0,10,0],[5,1,10,1],[5,2,10,4],[5,5,10,7],[4,5,4,7],[4,1,4,3],[13,16,13,17],[14,16,14,17],[15,16,15,17],[16,16,16,17],[17,16,17,17],[18,16,18,17],[19,16,19,17],[20,16,20,17],[21,16,21,17],[22,16,22,17],[23,16,23,17],[24,16,24,17],[25,16,25,17],[26,16,26,17],[27,16,27,17],[33,16,33,17],[28,16,28,17],[29,16,29,17],[30,16,30,17],[31,16,31,17],[32,16,32,17]]}
["DENSITY FIELD WORKSHEET (V2.2)",null,null,null,null,null,null,null,null,null,null,null,null,null,null,null,null,null,null,null,null,null,null,null,null,null,"Lift/Layer Variable:",1]
["Nuclear HMA Density QC/QV Testing Records",null,null,null,null,null,"QC/QV/Dept. Acceptance:",null,null,"Lot:",1,null,"Lift/Layer:",{"$f":"IF($AB$1=1,\"Upper\", IF($AB$1=2,\"Middle\", \"Lower\"))","v":"Upper"},"Density Std:",null,null,null,null,null,null,null,null,null,null,null,"Mainline/Joint Variable:",6]
["Calculated per WisDOT's Manual of Test Procedures WTM T355. Round the following values to the nearset 0.1: target max density, each individual reading in pcf, the intermediate average, and the final average pcf. Report the Gauge Offset to the nearset 0.1.",null,null,null,null,null,null,null,null,null,null,null,null,null,"Moisture Std: "]
["Project ID:",null,null,null,"Road Name:",null,null,null,"Contractor:",null,null,null,null,null,"Gauge Serial #:"]
["Project Leader:",null,null,null,"County: ",null,null,null,"QC TECH / HTCP #:",null,null,null,null,null,"WisDOT Mix #:"]
[null,null,null,null,null,null,null,null,"QV TECH / HTCP #:",null,null,null,null,null,"Mix Type:"]
[null,null,null,null,null,null,null,null,"Lot Limits:",null,null,"to",null,null,"Target Gmm:"]
[null,null,null,null,null,null,null,null,"Lot Length(ft):",null,null,null,null,null,"Target Max\nDensity (PCF):",{"$f":"ROUND(P7*62.24,1)","v":0}]
[null,null,null,null,null,null,null,null,"Lane Width (ft):",null,null,null,null,null,"Required\nDensity %:"]
[null,null,null,null,null,null,null,null,"Nominal Thickness(in):",null,null,null,null,null,"Date Placed:",null,"Pay Adjustment Gmm","Pay Adjustment Target Max Density (PCF)"]
[null,null,null,null,null,null,null,null,"Gauge Offset: \n(PWL Only)",null,null,null,null,null,"Date Tested:",null,null,{"$f":"ROUND(Q11*62.24,1)","v":0}]
["Testing Location",null,null,null,"Reading 1",null,null,"Reading  2 (rotate 180)",null,null,"Reading 3 (if needed, orig. orientation)",null,null," Final Density (all to 0.1)",null,null,"Density for Pay Adjustment",null,null,null,null,null,null,null,null,null,"Lot/Sublot ID","Rounded Readings (0.1 pcf)",null,null,"Variation from Avg",null,null,null,"Filter Outlier",null,null,"Nuc Avg Excluding Outlier (pcf)"]
["Lot - Sublot ID ","Random Station","Random Offset","Joint Type (only if LJD testing)","Density / Moisture Count","Wet \nDensity 1 \n(pcf)","% Max \nDensity 1","Density / Moisture Count","Wet \nDensity 2 \n(pcf)","% Max \nDensity 2","Density / Moisture Count","Wet \nDensity 3 \n(pcf)","% Max \nDensity 3","Average PCF","% Max Density","Adjusted % Max Density","Adjusted for Pay % Max Density",null,null,null,null,null,null,null,null,null,null,"Reading 1","Reading 2","Reading 3","Rounded Average of Readings (pcf)","Reading 1","Reading 2","Reading 3","Read 1","Read 2","Read 3"]
[{"$f":"CONCATENATE($K$2,\"-1A\")","v":"1-1A"},null,null,null,null,null,{"$f":"IF(F14=\"\",\"\",ROUND(AB14/$P$8,3))","v":""},null,null,{"$f":"IF(I14=\"\",\"\",ROUND(AC14/$P$8,3))","v":""},null,null,{"$f":"IF(L14=\"\",\"\",ROUND(AD14/$P$8,3))","v":""},{"$f":"IF(G14=\"\",\"\",AL14)","v":""},{"$f":"IF(OR(G14=\"\",J14=\"\"),\"\",ROUND(N14/$P$8,3))","v":""},{"$f":"IF(O14=\"\",\"\",ROUND(O14+($K$11/100),3))","v":""},{"$f":"IF(OR($Q$11=\"\",N14=\"\"),\"\",ROUND(ROUND(N14/$R$11,3)+($K$11/100),3))","v":""},null,null,null,null,null,null,null,null,null,{"$f":"A14","v":"1-1A"},{"$f":"IF(F14=\"\",\"\",ROUND(F14,1))","v":""},{"$f":"IF(I14=\"\",\"\",ROUND(I14,1))","v":""},{"$f":"IF(L14=\"\",\"\",ROUND(L14,1))","v":""},{"$f":"IFERROR(IF(ROUND(ABS(AB14-AC14),1)>1,ROUND(AVERAGE(AB14:AD14),1),ROUND(AVERAGE(AB14:AC14),1)),\"\")","v":""},{"$f":"IFERROR(ABS(ROUND($AE14-AB14,1)),NA())","v":{"$error":"#N/A"}},{"$f":"IFERROR(ABS(ROUND($AE14-AC14,1)),NA())","v":{"$error":"#N/A"}},{"$f":"IFERROR(ABS(ROUND($AE14-AD14,1)),NA())","v":{"$error":"#N/A"}},{"$f":"IF(AF14=_xlfn.AGGREGATE(4,6,$AF14:$AH14),0,AB14)","v":{"$error":"#N/A"}},{"$error":"#N/A"},{"$error":"#N/A"},{"$f":"IFERROR(IF(OR(COUNT(AB14:AD14)<3,ROUND(ABS(AB14-AC14),1)<=1),ROUND(AE14,1),IF(AND(COUNT(AB14:AD14)=3,OR(AB14=AE14,AC14=AE14,AD14=AE14)),ROUND(AE14,1),IF(COUNTIF(AI14:AK14,\"=0\")=2,ROUND(AE14,1),ROUND(AVERAGEIF(AI14:AK14,\">0\"),1)))),\"\")","v":""}]
[{"$f":"CONCATENATE($K$2,\"-1B\")","v":"1-1B"},null,null,null,null,null,{"$f":"IF(F15=\"\",\"\",ROUND(AB15/$P$8,3))","v":""},null,null,{"$f":"IF(I15=\"\",\"\",ROUND(AC15/$P$8,3))","v":""},null,null,{"$f":"IF(L15=\"\",\"\",ROUND(AD15/$P$8,3))","v":""},{"$f":"IF(G15=\"\",\"\",AL15)","v":""},{"$f":"IF(OR(G15=\"\",J15=\"\"),\"\",ROUND(N15/$P$8,3))","v":""},{"$f":"IF(O15=\"\",\"\",ROUND(O15+($K$11/100),3))","v":""},"",null,null,null,null,null,null,null,null,null,"1-1B",{"$f":"IF(F15=\"\",\"\",ROUND(F15,1))","v":""},{"$f":"IF(I15=\"\",\"\",ROUND(I15,1))","v":""},{"$f":"IF(L15=\"\",\"\",ROUND(L15,1))","v":""},{"$f":"IFERROR(IF(ROUND(ABS(AB15-AC15),1)>1,ROUND(AVERAGE(AB15:AD15),1),ROUND(AVERAGE(AB15:AC15),1)),\"\")","v":""},{"$f":"IFERROR(ABS(ROUND($AE15-AB15,1)),NA())","v":{"$error":"#N/A"}},{"$f":"IFERROR(ABS(ROUND($AE15-AC15,1)),NA())","v":{"$error":"#N/A"}},{"$f":"IFERROR(ABS(ROUND($AE15-AD15,1)),NA())","v":{"$error":"#N/A"}},{"$error":"#N/A"},{"$error":"#N/A"},{"$error":"#N/A"},""]
[{"$f":"CONCATENATE($K$2,\"-1C\")","v":"1-1C"},null,null,null,null,null,"",null,null,"",null,null,{"$f":"IF(L16=\"\",\"\",ROUND(AD16/$P$8,3))","v":""},{"$f":"IF(G16=\"\",\"\",AL16)","v":""},"","","",null,null,null,null,null,null,null,null,null,"1-1C","","","","",{"$error":"#N/A"},{"$error":"#N/A"},{"$error":"#N/A"},{"$error":"#N/A"},{"$error":"#N/A"},{"$error":"#N/A"},""]
[{"$f":"CONCATENATE($K$2,\"-2A\")","v":"1-2A"},null,null,null,null,null,"",null,null,"",null,null,{"$f":"IF(L17=\"\",\"\",ROUND(AD17/$P$8,3))","v":""},{"$f":"IF(G17=\"\",\"\",AL17)","v":""},"","","",null,null,null,null,null,null,null,null,null,"1-2A","","","","",{"$error":"#N/A"},{"$error":"#N/A"},{"$error":"#N/A"},{"$f":"IF(AF17=_xlfn.AGGREGATE(4,6,$AF17:$AH17),0,AB17)","v":{"$error":"#N/A"}},{"$f":"IF(AG17=_xlfn.AGGREGATE(4,6,$AF17:$AH17),0,AC17)","v":{"$error":"#N/A"}},{"$f":"IF(AH17=_xlfn.AGGREGATE(4,6,$AF17:$AH17),0,AD17)","v":{"$error":"#N/A"}},""]
[{"$f":"CONCATENATE($K$2,\"-2B\")","v":"1-2B"},null,null,null,null,null,"",null,null,"",null,null,"",{"$f":"IF(G18=\"\",\"\",AL18)","v":""},"","","",null,null,null,null,null,null,null,null,null,"1-2B","","","","",{"$error":"#N/A"},{"$error":"#N/A"},{"$error":"#N/A"},{"$error":"#N/A"},{"$error":"#N/A"},{"$f":"IF(AH18=_xlfn.AGGREGATE(4,6,$AF18:$AH18),0,AD18)","v":{"$error":"#N/A"}},""]
[{"$f":"CONCATENATE($K$2,\"-2C\")","v":"1-2C"},null,null,null,null,null,"",null,null,"",null,null,"",{"$f":"IF(G19=\"\",\"\",AL19)","v":""},"","","",null,null,null,null,null,null,null,null,null,"1-2C","","","","",{"$error":"#N/A"},{"$error":"#N/A"},{"$error":"#N/A"},{"$error":"#N/A"},{"$error":"#N/A"},{"$error":"#N/A"},""]
[{"$f":"CONCATENATE($K$2,\"-3A\")","v":"1-3A"},null,null,null,null,null,"",null,null,"",null,null,"","","","","",null,null,null,null,null,null,null,null,null,"1-3A","","","","",{"$error":"#N/A"},{"$error":"#N/A"},{"$error":"#N/A"},{"$error":"#N/A"},{"$error":"#N/A"},{"$error":"#N/A"},""]
[{"$f":"CONCATENATE($K$2,\"-3B\")","v":"1-3B"},null,null,null,null,null,"",null,null,"",null,null,"","","","","",null,null,null,null,null,null,null,null,null,"1-3B","","","","",{"$error":"#N/A"},{"$error":"#N/A"},{"$error":"#N/A"},{"$error":"#N/A"},{"$error":"#N/A"},{"$error":"#N/A"},""]
[{"$f":"CONCATENATE($K$2,\"-3C\")","v":"1-3C"},null,null,null,null,null,"",null,null,"",null,null,"","","","","",null,null,null,null,null,null,null,null,null,"1-3C","","","","",{"$error":"#N/A"},{"$error":"#N/A"},{"$error":"#N/A"},{"$error":"#N/A"},{"$error":"#N/A"},{"$error":"#N/A"},{"$f":"IFERROR(IF(OR(COUNT(AB22:AD22)<3,ROUND(ABS(AB22-AC22),1)<=1),ROUND(AE22,1),IF(AND(COUNT(AB22:AD22)=3,OR(AB22=AE22,AC22=AE22,AD22=AE22)),ROUND(AE22,1),IF(COUNTIF(AI22:AK22,\"=0\")=2,ROUND(AE22,1),ROUND(AVERAGEIF(AI22:AK22,\">0\"),1)))),\"\")","v":""}]
[{"$f":"CONCATENATE($K$2,\"-4A\")","v":"1-4A"},null,null,null,null,null,"",null,null,"",null,null,"","","","","",null,null,null,null,null,null,null,null,null,"1-4A","","","","",{"$error":"#N/A"},{"$error":"#N/A"},{"$error":"#N/A"},{"$error":"#N/A"},{"$error":"#N/A"},{"$error":"#N/A"},""]
[{"$f":"CONCATENATE($K$2,\"-4B\")","v":"1-4B"},null,null,null,null,null,"",null,null,"",null,null,"","","","","",null,null,null,null,null,null,null,null,null,"1-4B","","","","",{"$error":"#N/A"},{"$error":"#N/A"},{"$error":"#N/A"},{"$error":"#N/A"},{"$error":"#N/A"},{"$error":"#N/A"},""]
[{"$f":"CONCATENATE($K$2,\"-4C\")","v":"1-4C"},null,null,null,null,null,"",null,null,"",null,null,"","","","","",null,null,null,null,null,null,null,null,null,"1-4C","","","","",{"$error":"#N/A"},{"$error":"#N/A"},{"$error":"#N/A"},{"$error":"#N/A"},{"$error":"#N/A"},{"$error":"#N/A"},""]
[{"$f":"CONCATENATE($K$2,\"-5A\")","v":"1-5A"},null,null,null,null,null,"",null,null,"",null,null,"","","","","",null,null,null,null,null,null,null,null,null,"1-5A","","","","",{"$error":"#N/A"},{"$error":"#N/A"},{"$error":"#N/A"},{"$error":"#N/A"},{"$error":"#N/A"},{"$error":"#N/A"},""]
[{"$f":"CONCATENATE($K$2,\"-5B\")","v":"1-5B"},null,null,null,null,null,"",null,null,"",null,null,"","","","","",null,null,null,null,null,null,null,null,null,"1-5B","","",{"$f":"IF(L27=\"\",\"\",ROUND(L27,1))","v":""},"",{"$error":"#N/A"},{"$error":"#N/A"},{"$error":"#N/A"},{"$error":"#N/A"},{"$error":"#N/A"},{"$error":"#N/A"},""]
[{"$f":"CONCATENATE($K$2,\"-5C\")","v":"1-5C"},null,null,null,null,null,"",null,null,"",null,null,"","","","","",null,null,null,null,null,null,null,null,null,"1-5C","","","","",{"$error":"#N/A"},{"$error":"#N/A"},{"$error":"#N/A"},{"$error":"#N/A"},{"$error":"#N/A"},{"$error":"#N/A"},""]
[{"$f":"CONCATENATE($K$2,\"-6A\")","v":"1-6A"},null,null,null,null,null,"",null,null,"",null,null,"","","","","",null,null,null,null,null,null,null,null,null,"1-6A","","","","",{"$error":"#N/A"},{"$error":"#N/A"},{"$error":"#N/A"},{"$error":"#N/A"},{"$error":"#N/A"},{"$error":"#N/A"},""]
[{"$f":"CONCATENATE($K$2,\"-6B\")","v":"1-6B"},null,null,null,null,null,"",null,null,"",null,null,"","","","","",null,null,null,null,null,null,null,null,null,"1-6B","","","","",{"$error":"#N/A"},{"$error":"#N/A"},{"$error":"#N/A"},{"$error":"#N/A"},{"$error":"#N/A"},{"$error":"#N/A"},""]
[{"$f":"CONCATENATE($K$2,\"-6C\")","v":"1-6C"},null,null,null,null,null,"",null,null,"",null,null,"","","","","",null,null,null,null,null,null,null,null,null,"1-6C","","","","",{"$error":"#N/A"},{"$error":"#N/A"},{"$error":"#N/A"},{"$error":"#N/A"},{"$error":"#N/A"},{"$error":"#N/A"},""]
[{"$f":"CONCATENATE($K$2,\"-7A\")","v":"1-7A"},null,null,null,null,null,"",null,null,"",null,null,"","","","","",null,null,null,null,null,null,null,null,null,"1-7A","","","","",{"$error":"#N/A"},{"$error":"#N/A"},{"$error":"#N/A"},{"$error":"#N/A"},{"$error":"#N/A"},{"$error":"#N/A"},""]
[{"$f":"CONCATENATE($K$2,\"-7B\")","v":"1-7B"},null,null,null,null,null,"",null,null,"",null,null,"","","","","",null,null,null,null,null,null,null,null,null,"1-7B","","","","",{"$error":"#N/A"},{"$error":"#N/A"},{"$error":"#N/A"},{"$error":"#N/A"},{"$error":"#N/A"},{"$error":"#N/A"},""]
[{"$f":"CONCATENATE($K$2,\"-7C\")","v":"1-7C"},null,null,null,null,null,"",null,null,"",null,null,"","","","","",null,null,null,null,null,null,null,null,null,"1-7C","","",{"$f":"IF(L34=\"\",\"\",ROUND(L34,1))","v":""},"",{"$f":"IFERROR(ABS(ROUND($AE34-AB34,1)),NA())","v":{"$error":"#N/A"}},{"$f":"IFERROR(ABS(ROUND($AE34-AC34,1)),NA())","v":{"$error":"#N/A"}},{"$f":"IFERROR(ABS(ROUND($AE34-AD34,1)),NA())","v":{"$error":"#N/A"}},{"$f":"IF(AF34=_xlfn.AGGREGATE(4,6,$AF34:$AH34),0,AB34)","v":{"$error":"#N/A"}},{"$f":"IF(AG34=_xlfn.AGGREGATE(4,6,$AF34:$AH34),0,AC34)","v":{"$error":"#N/A"}},{"$f":"IF(AH34=_xlfn.AGGREGATE(4,6,$AF34:$AH34),0,AD34)","v":{"$error":"#N/A"}},{"$f":"IFERROR(IF(OR(COUNT(AB34:AD34)<3,ROUND(ABS(AB34-AC34),1)<=1),ROUND(AE34,1),IF(AND(COUNT(AB34:AD34)=3,OR(AB34=AE34,AC34=AE34,AD34=AE34)),ROUND(AE34,1),IF(COUNTIF(AI34:AK34,\"=0\")=2,ROUND(AE34,1),ROUND(AVERAGEIF(AI34:AK34,\">0\"),1)))),\"\")","v":""}]
["Target Max Density = Gmm x 62.24                                                                                                           Test Remarks"]

{"sheet":"Printable Density Worksheet","index":1,"n_rows":35,"n_cols":16,"rows_kept":35,"cut":false,"hidden":false,"merged":[[35,0,42,15],[34,0,34,15],[11,0,11,3],[11,4,11,6],[11,7,11,9],[11,10,11,12],[11,13,11,15],[9,8,9,9],[10,8,10,9],[10,10,10,13],[4,1,4,3],[4,5,4,7],[6,12,6,13],[4,10,4,13],[5,10,5,13],[7,10,7,13],[8,10,8,13],[9,10,9,13],[0,0,0,4],[1,0,1,4],[5,0,10,0],[5,1,10,1],[5,2,10,4],[2,0,2,13],[3,1,3,3],[3,5,3,7],[3,8,3,9],[3,10,3,13],[5,5,10,7],[4,8,4,9],[5,8,5,9],[6,8,6,9],[7,8,7,9],[8,8,8,9]]}
["DENSITY FIELD WORKSHEET (V2.2)"]
["Nuclear HMA Density QC/QV Testing Records",null,null,null,null,null,"QC/QV/Dept. Acceptance:",null,null,"Lot:",null,null,"Lift/Layer:",null,"Density Std:"]
["Calculated per WisDOT's Manual of Test Procedures WTM T355. Round the following values to the nearset 0.1: target max density, each individual reading in pcf, the intermediate average, and the final average pcf. Report the Gauge Offset to the nearset 0.1.",null,null,null,null,null,null,null,null,null,null,null,null,null,"Moisture Std: "]
["Project ID:",null,null,null,"Road Name:",null,null,null,"Contractor:",null,null,null,null,null,"Gauge Serial #:"]
["Project Leader:",null,null,null,"County: ",null,null,null,"QC TECH / HTCP #:",null,null,null,null,null,"WisDOT Mix #:"]
[null,null,null,null,null,null,null,null,"QV TECH / HTCP #:",null,null,null,null,null,"Mix Type:"]
[null,null,null,null,null,null,null,null,"Lot Limits:",null,null,"to",null,null,"Target Gmm:"]
[null,null,null,null,null,null,null,null,"Lot Length(ft):",null,null,null,null,null,"Target Max\nDensity (PCF):"]
[null,null,null,null,null,null,null,null,"Lane Width (ft):",null,null,null,null,null,"Required\nDensity %:"]
[null,null,null,null,null,null,null,null,"Nominal Thickness(in):",null,null,null,null,null,"Date Placed:"]
[null,null,null,null,null,null,null,null,"Gauge Offset: \n(PWL Only)",null,null,null,null,null,"Date Tested:"]
["Testing Location",null,null,null,"Reading 1",null,null,"Reading  2 (rotate 180)",null,null,"Reading 3 (if needed, orig. orientation)",null,null," Final Density (all to 0.1)"]
["Lot - Sublot ID ","Random Station","Random Offset","Joint Type (only if LJD testing)","Density / Moisture Count","Wet \nDensity 1 \n(pcf)","% Max \nDensity 1","Density / Moisture Count","Wet \nDensity 2 \n(pcf)","% Max \nDensity 2","Density / Moisture Count","Wet \nDensity 3 \n(pcf)","% Max \nDensity 3","Average PCF","% Max Density","Adjusted % Max Density"]
[]
[]
[]
[]
[]
[]
[]
[]
[]
[]
[]
[]
[]
[]
[]
[]
[]
[]
[]
[]
[]
["Target Max Density = Gmm x 62.24                                                                                                           Test Remarks"]

{"sheet":"Formatted for PWL","index":2,"n_rows":25,"n_cols":6,"rows_kept":25,"cut":false,"hidden":false,"merged":[]}
[]
[null,null,null,"Current Gmm used for Pay Adjustment:",{"$f":"IF('Density Worksheet'!$Q$11=\"\",\"Not yet provided.\",'Density Worksheet'!$Q$11)","v":"Not yet provided."}]
[]
[null,{"$f":"IF('Density Worksheet'!$AB$2<>7,\"Date\",\"\")","v":"Date"},{"$f":"IF('Density Worksheet'!$AB$2<>7,\"Lot\",\"Jt. Type\")","v":"Lot"},{"$f":"IF('Density Worksheet'!$AB$2<>7,\"Sublot\",\"Joint Length (BLANK)\")","v":"Sublot"},"QC Tests\n(%)","QV Tests\n(%)"]
[null,{"$f":"IF(OR('Density Worksheet'!$P$11=\"\",AND(E5=\"\",F5=\"\"),'Density Worksheet'!$AB$2=7),\"\",'Density Worksheet'!$P$11)","v":""},{"$f":"IF(OR('Density Worksheet'!$P$11=\"\",AND(E5=\"\",F5=\"\")),\"\",IF('Density Worksheet'!$AB$2<>7,'Density Worksheet'!$K$2,IF('Density Worksheet'!D14=\"\",\"\",'Density Worksheet'!D14)))","v":""},{"$f":"IF(OR('Density Worksheet'!$P$11=\"\",AND(E5=\"\",F5=\"\"),'Density Worksheet'!$AB$2=7),\"\",\"1A\")","v":""},{"$f":"IF(OR('Density Worksheet'!$H$2=\"\",'Density Worksheet'!$Q$11=\"\",'Density Worksheet'!Q14=\"\"),\"\",IF('Density Worksheet'!$H$2=\"QC\",'Density Worksheet'!Q14*100,\"\"))","v":""},{"$f":"IF(OR('Density Worksheet'!$H$2=\"\",'Density Worksheet'!$Q$11=\"\",'Density Worksheet'!Q14=\"\"),\"\",IF(OR('Density Worksheet'!$H$2=\"QV\",'Density Worksheet'!$H$2=\"Dept. Acceptance\"),'Density Worksheet'!Q14*100,\"\"))","v":""}]
[null,{"$f":"IF(OR('Density Worksheet'!$P$11=\"\",AND(E6=\"\",F6=\"\"),'Density Worksheet'!$AB$2=7),\"\",'Density Worksheet'!$P$11)","v":""},{"$f":"IF(OR('Density Worksheet'!$P$11=\"\",AND(E6=\"\",F6=\"\")),\"\",IF('Density Worksheet'!$AB$2<>7,'Density Worksheet'!$K$2,IF('Density Worksheet'!D15=\"\",\"\",'Density Worksheet'!D15)))","v":""},{"$f":"IF(OR('Density Worksheet'!$P$11=\"\",AND(E6=\"\",F6=\"\"),'Density Worksheet'!$AB$2=7),\"\",\"1B\")","v":""},{"$f":"IF(OR('Density Worksheet'!$H$2=\"\",'Density Worksheet'!$Q$11=\"\",'Density Worksheet'!Q15=\"\"),\"\",IF('Density Worksheet'!$H$2=\"QC\",'Density Worksheet'!Q15*100,\"\"))","v":""},{"$f":"IF(OR('Density Worksheet'!$H$2=\"\",'Density Worksheet'!$Q$11=\"\",'Density Worksheet'!Q15=\"\"),\"\",IF(OR('Density Worksheet'!$H$2=\"QV\",'Density Worksheet'!$H$2=\"Dept. Acceptance\"),'Density Worksheet'!Q15*100,\"\"))","v":""}]
[null,{"$f":"IF(OR('Density Worksheet'!$P$11=\"\",AND(E7=\"\",F7=\"\"),'Density Worksheet'!$AB$2=7),\"\",'Density Worksheet'!$P$11)","v":""},{"$f":"IF(OR('Density Worksheet'!$P$11=\"\",AND(E7=\"\",F7=\"\")),\"\",IF('Density Worksheet'!$AB$2<>7,'Density Worksheet'!$K$2,IF('Density Worksheet'!D16=\"\",\"\",'Density Worksheet'!D16)))","v":""},{"$f":"IF(OR('Density Worksheet'!$P$11=\"\",AND(E7=\"\",F7=\"\"),'Density Worksheet'!$AB$2=7),\"\",\"1C\")","v":""},{"$f":"IF(OR('Density Worksheet'!$H$2=\"\",'Density Worksheet'!$Q$11=\"\",'Density Worksheet'!Q16=\"\"),\"\",IF('Density Worksheet'!$H$2=\"QC\",'Density Worksheet'!Q16*100,\"\"))","v":""},{"$f":"IF(OR('Density Worksheet'!$H$2=\"\",'Density Worksheet'!$Q$11=\"\",'Density Worksheet'!Q16=\"\"),\"\",IF(OR('Density Worksheet'!$H$2=\"QV\",'Density Worksheet'!$H$2=\"Dept. Acceptance\"),'Density Worksheet'!Q16*100,\"\"))","v":""}]
[null,{"$f":"IF(OR('Density Worksheet'!$P$11=\"\",AND(E8=\"\",F8=\"\"),'Density Worksheet'!$AB$2=7),\"\",'Density Worksheet'!$P$11)","v":""},{"$f":"IF(OR('Density Worksheet'!$P$11=\"\",AND(E8=\"\",F8=\"\")),\"\",IF('Density Worksheet'!$AB$2<>7,'Density Worksheet'!$K$2,IF('Density Worksheet'!D17=\"\",\"\",'Density Worksheet'!D17)))","v":""},{"$f":"IF(OR('Density Worksheet'!$P$11=\"\",AND(E8=\"\",F8=\"\"),'Density Worksheet'!$AB$2=7),\"\",\"2A\")","v":""},{"$f":"IF(OR('Density Worksheet'!$H$2=\"\",'Density Worksheet'!$Q$11=\"\",'Density Worksheet'!Q17=\"\"),\"\",IF('Density Worksheet'!$H$2=\"QC\",'Density Worksheet'!Q17*100,\"\"))","v":""},{"$f":"IF(OR('Density Worksheet'!$H$2=\"\",'Density Worksheet'!$Q$11=\"\",'Density Worksheet'!Q17=\"\"),\"\",IF(OR('Density Worksheet'!$H$2=\"QV\",'Density Worksheet'!$H$2=\"Dept. Acceptance\"),'Density Worksheet'!Q17*100,\"\"))","v":""}]
[null,{"$f":"IF(OR('Density Worksheet'!$P$11=\"\",AND(E9=\"\",F9=\"\"),'Density Worksheet'!$AB$2=7),\"\",'Density Worksheet'!$P$11)","v":""},{"$f":"IF(OR('Density Worksheet'!$P$11=\"\",AND(E9=\"\",F9=\"\")),\"\",IF('Density Worksheet'!$AB$2<>7,'Density Worksheet'!$K$2,IF('Density Worksheet'!D18=\"\",\"\",'Density Worksheet'!D18)))","v":""},{"$f":"IF(OR('Density Worksheet'!$P$11=\"\",AND(E9=\"\",F9=\"\"),'Density Worksheet'!$AB$2=7),\"\",\"2B\")","v":""},{"$f":"IF(OR('Density Worksheet'!$H$2=\"\",'Density Worksheet'!$Q$11=\"\",'Density Worksheet'!Q18=\"\"),\"\",IF('Density Worksheet'!$H$2=\"QC\",'Density Worksheet'!Q18*100,\"\"))","v":""},{"$f":"IF(OR('Density Worksheet'!$H$2=\"\",'Density Worksheet'!$Q$11=\"\",'Density Worksheet'!Q18=\"\"),\"\",IF(OR('Density Worksheet'!$H$2=\"QV\",'Density Worksheet'!$H$2=\"Dept. Acceptance\"),'Density Worksheet'!Q18*100,\"\"))","v":""}]
[null,{"$f":"IF(OR('Density Worksheet'!$P$11=\"\",AND(E10=\"\",F10=\"\"),'Density Worksheet'!$AB$2=7),\"\",'Density Worksheet'!$P$11)","v":""},{"$f":"IF(OR('Density Worksheet'!$P$11=\"\",AND(E10=\"\",F10=\"\")),\"\",IF('Density Worksheet'!$AB$2<>7,'Density Worksheet'!$K$2,IF('Density Worksheet'!D19=\"\",\"\",'Density Worksheet'!D19)))","v":""},{"$f":"IF(OR('Density Worksheet'!$P$11=\"\",AND(E10=\"\",F10=\"\"),'Density Worksheet'!$AB$2=7),\"\",\"2C\")","v":""},{"$f":"IF(OR('Density Worksheet'!$H$2=\"\",'Density Worksheet'!$Q$11=\"\",'Density Worksheet'!Q19=\"\"),\"\",IF('Density Worksheet'!$H$2=\"QC\",'Density Worksheet'!Q19*100,\"\"))","v":""},{"$f":"IF(OR('Density Worksheet'!$H$2=\"\",'Density Worksheet'!$Q$11=\"\",'Density Worksheet'!Q19=\"\"),\"\",IF(OR('Density Worksheet'!$H$2=\"QV\",'Density Worksheet'!$H$2=\"Dept. Acceptance\"),'Density Worksheet'!Q19*100,\"\"))","v":""}]
[null,{"$f":"IF(OR('Density Worksheet'!$P$11=\"\",AND(E11=\"\",F11=\"\"),'Density Worksheet'!$AB$2=7),\"\",'Density Worksheet'!$P$11)","v":""},{"$f":"IF(OR('Density Worksheet'!$P$11=\"\",AND(E11=\"\",F11=\"\")),\"\",IF('Density Worksheet'!$AB$2<>7,'Density Worksheet'!$K$2,IF('Density Worksheet'!D20=\"\",\"\",'Density Worksheet'!D20)))","v":""},{"$f":"IF(OR('Density Worksheet'!$P$11=\"\",AND(E11=\"\",F11=\"\"),'Density Worksheet'!$AB$2=7),\"\",\"3A\")","v":""},{"$f":"IF(OR('Density Worksheet'!$H$2=\"\",'Density Worksheet'!$Q$11=\"\",'Density Worksheet'!Q20=\"\"),\"\",IF('Density Worksheet'!$H$2=\"QC\",'Density Worksheet'!Q20*100,\"\"))","v":""},{"$f":"IF(OR('Density Worksheet'!$H$2=\"\",'Density Worksheet'!$Q$11=\"\",'Density Worksheet'!Q20=\"\"),\"\",IF(OR('Density Worksheet'!$H$2=\"QV\",'Density Worksheet'!$H$2=\"Dept. Acceptance\"),'Density Worksheet'!Q20*100,\"\"))","v":""}]
[null,{"$f":"IF(OR('Density Worksheet'!$P$11=\"\",AND(E12=\"\",F12=\"\"),'Density Worksheet'!$AB$2=7),\"\",'Density Worksheet'!$P$11)","v":""},{"$f":"IF(OR('Density Worksheet'!$P$11=\"\",AND(E12=\"\",F12=\"\")),\"\",IF('Density Worksheet'!$AB$2<>7,'Density Worksheet'!$K$2,IF('Density Worksheet'!D21=\"\",\"\",'Density Worksheet'!D21)))","v":""},{"$f":"IF(OR('Density Worksheet'!$P$11=\"\",AND(E12=\"\",F12=\"\"),'Density Worksheet'!$AB$2=7),\"\",\"3B\")","v":""},{"$f":"IF(OR('Density Worksheet'!$H$2=\"\",'Density Worksheet'!$Q$11=\"\",'Density Worksheet'!Q21=\"\"),\"\",IF('Density Worksheet'!$H$2=\"QC\",'Density Worksheet'!Q21*100,\"\"))","v":""},{"$f":"IF(OR('Density Worksheet'!$H$2=\"\",'Density Worksheet'!$Q$11=\"\",'Density Worksheet'!Q21=\"\"),\"\",IF(OR('Density Worksheet'!$H$2=\"QV\",'Density Worksheet'!$H$2=\"Dept. Acceptance\"),'Density Worksheet'!Q21*100,\"\"))","v":""}]
[null,{"$f":"IF(OR('Density Worksheet'!$P$11=\"\",AND(E13=\"\",F13=\"\"),'Density Worksheet'!$AB$2=7),\"\",'Density Worksheet'!$P$11)","v":""},{"$f":"IF(OR('Density Worksheet'!$P$11=\"\",AND(E13=\"\",F13=\"\")),\"\",IF('Density Worksheet'!$AB$2<>7,'Density Worksheet'!$K$2,IF('Density Worksheet'!D22=\"\",\"\",'Density Worksheet'!D22)))","v":""},{"$f":"IF(OR('Density Worksheet'!$P$11=\"\",AND(E13=\"\",F13=\"\"),'Density Worksheet'!$AB$2=7),\"\",\"3C\")","v":""},{"$f":"IF(OR('Density Worksheet'!$H$2=\"\",'Density Worksheet'!$Q$11=\"\",'Density Worksheet'!Q22=\"\"),\"\",IF('Density Worksheet'!$H$2=\"QC\",'Density Worksheet'!Q22*100,\"\"))","v":""},{"$f":"IF(OR('Density Worksheet'!$H$2=\"\",'Density Worksheet'!$Q$11=\"\",'Density Worksheet'!Q22=\"\"),\"\",IF(OR('Density Worksheet'!$H$2=\"QV\",'Density Worksheet'!$H$2=\"Dept. Acceptance\"),'Density Worksheet'!Q22*100,\"\"))","v":""}]
[null,{"$f":"IF(OR('Density Worksheet'!$P$11=\"\",AND(E14=\"\",F14=\"\"),'Density Worksheet'!$AB$2=7),\"\",'Density Worksheet'!$P$11)","v":""},{"$f":"IF(OR('Density Worksheet'!$P$11=\"\",AND(E14=\"\",F14=\"\")),\"\",IF('Density Worksheet'!$AB$2<>7,'Density Worksheet'!$K$2,IF('Density Worksheet'!D23=\"\",\"\",'Density Worksheet'!D23)))","v":""},{"$f":"IF(OR('Density Worksheet'!$P$11=\"\",AND(E14=\"\",F14=\"\"),'Density Worksheet'!$AB$2=7),\"\",\"4A\")","v":""},{"$f":"IF(OR('Density Worksheet'!$H$2=\"\",'Density Worksheet'!$Q$11=\"\",'Density Worksheet'!Q23=\"\"),\"\",IF('Density Worksheet'!$H$2=\"QC\",'Density Worksheet'!Q23*100,\"\"))","v":""},{"$f":"IF(OR('Density Worksheet'!$H$2=\"\",'Density Worksheet'!$Q$11=\"\",'Density Worksheet'!Q23=\"\"),\"\",IF(OR('Density Worksheet'!$H$2=\"QV\",'Density Worksheet'!$H$2=\"Dept. Acceptance\"),'Density Worksheet'!Q23*100,\"\"))","v":""}]
[null,{"$f":"IF(OR('Density Worksheet'!$P$11=\"\",AND(E15=\"\",F15=\"\"),'Density Worksheet'!$AB$2=7),\"\",'Density Worksheet'!$P$11)","v":""},{"$f":"IF(OR('Density Worksheet'!$P$11=\"\",AND(E15=\"\",F15=\"\")),\"\",IF('Density Worksheet'!$AB$2<>7,'Density Worksheet'!$K$2,IF('Density Worksheet'!D24=\"\",\"\",'Density Worksheet'!D24)))","v":""},{"$f":"IF(OR('Density Worksheet'!$P$11=\"\",AND(E15=\"\",F15=\"\"),'Density Worksheet'!$AB$2=7),\"\",\"4B\")","v":""},{"$f":"IF(OR('Density Worksheet'!$H$2=\"\",'Density Worksheet'!$Q$11=\"\",'Density Worksheet'!Q24=\"\"),\"\",IF('Density Worksheet'!$H$2=\"QC\",'Density Worksheet'!Q24*100,\"\"))","v":""},{"$f":"IF(OR('Density Worksheet'!$H$2=\"\",'Density Worksheet'!$Q$11=\"\",'Density Worksheet'!Q24=\"\"),\"\",IF(OR('Density Worksheet'!$H$2=\"QV\",'Density Worksheet'!$H$2=\"Dept. Acceptance\"),'Density Worksheet'!Q24*100,\"\"))","v":""}]
[null,{"$f":"IF(OR('Density Worksheet'!$P$11=\"\",AND(E16=\"\",F16=\"\"),'Density Worksheet'!$AB$2=7),\"\",'Density Worksheet'!$P$11)","v":""},{"$f":"IF(OR('Density Worksheet'!$P$11=\"\",AND(E16=\"\",F16=\"\")),\"\",IF('Density Worksheet'!$AB$2<>7,'Density Worksheet'!$K$2,IF('Density Worksheet'!D25=\"\",\"\",'Density Worksheet'!D25)))","v":""},{"$f":"IF(OR('Density Worksheet'!$P$11=\"\",AND(E16=\"\",F16=\"\"),'Density Worksheet'!$AB$2=7),\"\",\"4C\")","v":""},{"$f":"IF(OR('Density Worksheet'!$H$2=\"\",'Density Worksheet'!$Q$11=\"\",'Density Worksheet'!Q25=\"\"),\"\",IF('Density Worksheet'!$H$2=\"QC\",'Density Worksheet'!Q25*100,\"\"))","v":""},{"$f":"IF(OR('Density Worksheet'!$H$2=\"\",'Density Worksheet'!$Q$11=\"\",'Density Worksheet'!Q25=\"\"),\"\",IF(OR('Density Worksheet'!$H$2=\"QV\",'Density Worksheet'!$H$2=\"Dept. Acceptance\"),'Density Worksheet'!Q25*100,\"\"))","v":""}]
[null,{"$f":"IF(OR('Density Worksheet'!$P$11=\"\",AND(E17=\"\",F17=\"\"),'Density Worksheet'!$AB$2=7),\"\",'Density Worksheet'!$P$11)","v":""},{"$f":"IF(OR('Density Worksheet'!$P$11=\"\",AND(E17=\"\",F17=\"\")),\"\",IF('Density Worksheet'!$AB$2<>7,'Density Worksheet'!$K$2,IF('Density Worksheet'!D26=\"\",\"\",'Density Worksheet'!D26)))","v":""},{"$f":"IF(OR('Density Worksheet'!$P$11=\"\",AND(E17=\"\",F17=\"\"),'Density Worksheet'!$AB$2=7),\"\",\"5A\")","v":""},{"$f":"IF(OR('Density Worksheet'!$H$2=\"\",'Density Worksheet'!$Q$11=\"\",'Density Worksheet'!Q26=\"\"),\"\",IF('Density Worksheet'!$H$2=\"QC\",'Density Worksheet'!Q26*100,\"\"))","v":""},{"$f":"IF(OR('Density Worksheet'!$H$2=\"\",'Density Worksheet'!$Q$11=\"\",'Density Worksheet'!Q26=\"\"),\"\",IF(OR('Density Worksheet'!$H$2=\"QV\",'Density Worksheet'!$H$2=\"Dept. Acceptance\"),'Density Worksheet'!Q26*100,\"\"))","v":""}]
[null,{"$f":"IF(OR('Density Worksheet'!$P$11=\"\",AND(E18=\"\",F18=\"\"),'Density Worksheet'!$AB$2=7),\"\",'Density Worksheet'!$P$11)","v":""},{"$f":"IF(OR('Density Worksheet'!$P$11=\"\",AND(E18=\"\",F18=\"\")),\"\",IF('Density Worksheet'!$AB$2<>7,'Density Worksheet'!$K$2,IF('Density Worksheet'!D27=\"\",\"\",'Density Worksheet'!D27)))","v":""},{"$f":"IF(OR('Density Worksheet'!$P$11=\"\",AND(E18=\"\",F18=\"\"),'Density Worksheet'!$AB$2=7),\"\",\"5B\")","v":""},{"$f":"IF(OR('Density Worksheet'!$H$2=\"\",'Density Worksheet'!$Q$11=\"\",'Density Worksheet'!Q27=\"\"),\"\",IF('Density Worksheet'!$H$2=\"QC\",'Density Worksheet'!Q27*100,\"\"))","v":""},{"$f":"IF(OR('Density Worksheet'!$H$2=\"\",'Density Worksheet'!$Q$11=\"\",'Density Worksheet'!Q27=\"\"),\"\",IF(OR('Density Worksheet'!$H$2=\"QV\",'Density Worksheet'!$H$2=\"Dept. Acceptance\"),'Density Worksheet'!Q27*100,\"\"))","v":""}]
[null,{"$f":"IF(OR('Density Worksheet'!$P$11=\"\",AND(E19=\"\",F19=\"\"),'Density Worksheet'!$AB$2=7),\"\",'Density Worksheet'!$P$11)","v":""},{"$f":"IF(OR('Density Worksheet'!$P$11=\"\",AND(E19=\"\",F19=\"\")),\"\",IF('Density Worksheet'!$AB$2<>7,'Density Worksheet'!$K$2,IF('Density Worksheet'!D28=\"\",\"\",'Density Worksheet'!D28)))","v":""},{"$f":"IF(OR('Density Worksheet'!$P$11=\"\",AND(E19=\"\",F19=\"\"),'Density Worksheet'!$AB$2=7),\"\",\"5C\")","v":""},{"$f":"IF(OR('Density Worksheet'!$H$2=\"\",'Density Worksheet'!$Q$11=\"\",'Density Worksheet'!Q28=\"\"),\"\",IF('Density Worksheet'!$H$2=\"QC\",'Density Worksheet'!Q28*100,\"\"))","v":""},{"$f":"IF(OR('Density Worksheet'!$H$2=\"\",'Density Worksheet'!$Q$11=\"\",'Density Worksheet'!Q28=\"\"),\"\",IF(OR('Density Worksheet'!$H$2=\"QV\",'Density Worksheet'!$H$2=\"Dept. Acceptance\"),'Density Worksheet'!Q28*100,\"\"))","v":""}]
[null,{"$f":"IF(OR('Density Worksheet'!$P$11=\"\",AND(E20=\"\",F20=\"\"),'Density Worksheet'!$AB$2=7),\"\",'Density Worksheet'!$P$11)","v":""},{"$f":"IF(OR('Density Worksheet'!$P$11=\"\",AND(E20=\"\",F20=\"\")),\"\",IF('Density Worksheet'!$AB$2<>7,'Density Worksheet'!$K$2,IF('Density Worksheet'!D29=\"\",\"\",'Density Worksheet'!D29)))","v":""},{"$f":"IF(OR('Density Worksheet'!$P$11=\"\",AND(E20=\"\",F20=\"\"),'Density Worksheet'!$AB$2=7),\"\",\"6A\")","v":""},{"$f":"IF(OR('Density Worksheet'!$H$2=\"\",'Density Worksheet'!$Q$11=\"\",'Density Worksheet'!Q29=\"\"),\"\",IF('Density Worksheet'!$H$2=\"QC\",'Density Worksheet'!Q29*100,\"\"))","v":""},{"$f":"IF(OR('Density Worksheet'!$H$2=\"\",'Density Worksheet'!$Q$11=\"\",'Density Worksheet'!Q29=\"\"),\"\",IF(OR('Density Worksheet'!$H$2=\"QV\",'Density Worksheet'!$H$2=\"Dept. Acceptance\"),'Density Worksheet'!Q29*100,\"\"))","v":""}]
[null,{"$f":"IF(OR('Density Worksheet'!$P$11=\"\",AND(E21=\"\",F21=\"\"),'Density Worksheet'!$AB$2=7),\"\",'Density Worksheet'!$P$11)","v":""},{"$f":"IF(OR('Density Worksheet'!$P$11=\"\",AND(E21=\"\",F21=\"\")),\"\",IF('Density Worksheet'!$AB$2<>7,'Density Worksheet'!$K$2,IF('Density Worksheet'!D30=\"\",\"\",'Density Worksheet'!D30)))","v":""},{"$f":"IF(OR('Density Worksheet'!$P$11=\"\",AND(E21=\"\",F21=\"\"),'Density Worksheet'!$AB$2=7),\"\",\"6B\")","v":""},{"$f":"IF(OR('Density Worksheet'!$H$2=\"\",'Density Worksheet'!$Q$11=\"\",'Density Worksheet'!Q30=\"\"),\"\",IF('Density Worksheet'!$H$2=\"QC\",'Density Worksheet'!Q30*100,\"\"))","v":""},{"$f":"IF(OR('Density Worksheet'!$H$2=\"\",'Density Worksheet'!$Q$11=\"\",'Density Worksheet'!Q30=\"\"),\"\",IF(OR('Density Worksheet'!$H$2=\"QV\",'Density Worksheet'!$H$2=\"Dept. Acceptance\"),'Density Worksheet'!Q30*100,\"\"))","v":""}]
[null,{"$f":"IF(OR('Density Worksheet'!$P$11=\"\",AND(E22=\"\",F22=\"\"),'Density Worksheet'!$AB$2=7),\"\",'Density Worksheet'!$P$11)","v":""},{"$f":"IF(OR('Density Worksheet'!$P$11=\"\",AND(E22=\"\",F22=\"\")),\"\",IF('Density Worksheet'!$AB$2<>7,'Density Worksheet'!$K$2,IF('Density Worksheet'!D31=\"\",\"\",'Density Worksheet'!D31)))","v":""},{"$f":"IF(OR('Density Worksheet'!$P$11=\"\",AND(E22=\"\",F22=\"\"),'Density Worksheet'!$AB$2=7),\"\",\"6C\")","v":""},{"$f":"IF(OR('Density Worksheet'!$H$2=\"\",'Density Worksheet'!$Q$11=\"\",'Density Worksheet'!Q31=\"\"),\"\",IF('Density Worksheet'!$H$2=\"QC\",'Density Worksheet'!Q31*100,\"\"))","v":""},{"$f":"IF(OR('Density Worksheet'!$H$2=\"\",'Density Worksheet'!$Q$11=\"\",'Density Worksheet'!Q31=\"\"),\"\",IF(OR('Density Worksheet'!$H$2=\"QV\",'Density Worksheet'!$H$2=\"Dept. Acceptance\"),'Density Worksheet'!Q31*100,\"\"))","v":""}]
[null,{"$f":"IF(OR('Density Worksheet'!$P$11=\"\",AND(E23=\"\",F23=\"\"),'Density Worksheet'!$AB$2=7),\"\",'Density Worksheet'!$P$11)","v":""},{"$f":"IF(OR('Density Worksheet'!$P$11=\"\",AND(E23=\"\",F23=\"\")),\"\",IF('Density Worksheet'!$AB$2<>7,'Density Worksheet'!$K$2,IF('Density Worksheet'!D32=\"\",\"\",'Density Worksheet'!D32)))","v":""},{"$f":"IF(OR('Density Worksheet'!$P$11=\"\",AND(E23=\"\",F23=\"\"),'Density Worksheet'!$AB$2=7),\"\",\"7A\")","v":""},{"$f":"IF(OR('Density Worksheet'!$H$2=\"\",'Density Worksheet'!$Q$11=\"\",'Density Worksheet'!Q32=\"\"),\"\",IF('Density Worksheet'!$H$2=\"QC\",'Density Worksheet'!Q32*100,\"\"))","v":""},{"$f":"IF(OR('Density Worksheet'!$H$2=\"\",'Density Worksheet'!$Q$11=\"\",'Density Worksheet'!Q32=\"\"),\"\",IF(OR('Density Worksheet'!$H$2=\"QV\",'Density Worksheet'!$H$2=\"Dept. Acceptance\"),'Density Worksheet'!Q32*100,\"\"))","v":""}]
[null,{"$f":"IF(OR('Density Worksheet'!$P$11=\"\",AND(E24=\"\",F24=\"\"),'Density Worksheet'!$AB$2=7),\"\",'Density Worksheet'!$P$11)","v":""},{"$f":"IF(OR('Density Worksheet'!$P$11=\"\",AND(E24=\"\",F24=\"\")),\"\",IF('Density Worksheet'!$AB$2<>7,'Density Worksheet'!$K$2,IF('Density Worksheet'!D33=\"\",\"\",'Density Worksheet'!D33)))","v":""},{"$f":"IF(OR('Density Worksheet'!$P$11=\"\",AND(E24=\"\",F24=\"\"),'Density Worksheet'!$AB$2=7),\"\",\"7B\")","v":""},{"$f":"IF(OR('Density Worksheet'!$H$2=\"\",'Density Worksheet'!$Q$11=\"\",'Density Worksheet'!Q33=\"\"),\"\",IF('Density Worksheet'!$H$2=\"QC\",'Density Worksheet'!Q33*100,\"\"))","v":""},{"$f":"IF(OR('Density Worksheet'!$H$2=\"\",'Density Worksheet'!$Q$11=\"\",'Density Worksheet'!Q33=\"\"),\"\",IF(OR('Density Worksheet'!$H$2=\"QV\",'Density Worksheet'!$H$2=\"Dept. Acceptance\"),'Density Worksheet'!Q33*100,\"\"))","v":""}]
[null,{"$f":"IF(OR('Density Worksheet'!$P$11=\"\",AND(E25=\"\",F25=\"\"),'Density Worksheet'!$AB$2=7),\"\",'Density Worksheet'!$P$11)","v":""},{"$f":"IF(OR('Density Worksheet'!$P$11=\"\",AND(E25=\"\",F25=\"\")),\"\",IF('Density Worksheet'!$AB$2<>7,'Density Worksheet'!$K$2,IF('Density Worksheet'!D34=\"\",\"\",'Density Worksheet'!D34)))","v":""},{"$f":"IF(OR('Density Worksheet'!$P$11=\"\",AND(E25=\"\",F25=\"\"),'Density Worksheet'!$AB$2=7),\"\",\"7C\")","v":""},{"$f":"IF(OR('Density Worksheet'!$H$2=\"\",'Density Worksheet'!$Q$11=\"\",'Density Worksheet'!Q34=\"\"),\"\",IF('Density Worksheet'!$H$2=\"QC\",'Density Worksheet'!Q34*100,\"\"))","v":""},{"$f":"IF(OR('Density Worksheet'!$H$2=\"\",'Density Worksheet'!$Q$11=\"\",'Density Worksheet'!Q34=\"\"),\"\",IF(OR('Density Worksheet'!$H$2=\"QV\",'Density Worksheet'!$H$2=\"Dept. Acceptance\"),'Density Worksheet'!Q34*100,\"\"))","v":""}]